fUST/lending_fUST_20260109
["ID","MTS","AMOUNT","RATE_DAILY","PERIOD"]
[401139094,1767966642504,-500.0,0.00016876,2]
[401139096,1767966642513,-151.0,0.00016876,2]
[401139098,1767966642522,-250.0,0.00016876,2]
[401139100,1767966642531,-151.0,0.00016876,2]
[401139102,1767966642540,-500.0,0.00016876,2]
[401139104,1767966642550,-151.0,0.00016876,2]
[401139106,1767966642560,-250.0,0.00016876,2]
[401139108,1767966642569,-2030.296672,0.00016876,2]
[401139110,1767966642578,-30000.0,0.00016876,2]
[401139111,1767966642587,-151.0,0.00016876,2]
[401139113,1767966642596,-187.78006526,0.00016876,2]
[401139115,1767966642605,-864.0,0.00016906,2]
[401139117,1767966642616,-2105.41764886,0.00016931,2]
[401139119,1767966642625,-2183.31810187,0.00016986,2]
[401139122,1767966642634,-3500.0,0.00016986,2]
[401139124,1767966642644,-3500.0,0.00016986,2]
[401139126,1767966642653,-200.0,0.00016999,2]
[401139128,1767966642662,-380.0,0.00016999,2]
[401139130,1767966642671,-3000.0,0.00017,2]
[401139132,1767966642681,-80999.88312029,0.00017,2]
[401139134,1767966642690,-151.0,0.00017,2]
[401139136,1767966642699,-277.037109,0.00017,2]
[401139138,1767966642708,-777.0,0.00017,2]
[401139140,1767966642717,-277.037109,0.00017,2]
[401139142,1767966642726,-277.037109,0.00017,2]
[401139144,1767966642735,-277.037101,0.00017,2]
[401139146,1767966642744,-848.820389,0.00017,2]
[401139147,1767966642753,-848.820389,0.00017,2]
[401139150,1767966642762,-848.820389,0.00017,2]
[401139152,1767966642771,-848.820395,0.00017,2]
[401139154,1767966642780,-37460.20083142,0.0001701,3]
[401139156,1767966642790,-2264.10087164,0.00017041,2]
[401139157,1767966642799,-2347.87260389,0.00017096,2]
[401139159,1767966642808,-151.0,0.000171,2]
[401139161,1767966642817,-1494.30413283,0.00017151,2]
[401139163,1767966642825,-380.0,0.00017153,2]
[401139165,1767966642835,-151.0,0.000172,2]
[401139167,1767966642844,-380.0,0.0001724,2]
[401139170,1767966642853,-302.92044169,0.00017272,2]
[401139171,1767966642862,-380.0,0.00017299,2]
[401139173,1767966642871,-181.573329,0.00017315,2]
[401139175,1767966642880,-380.0,0.0001732,2]
[401139177,1767966642895,-356.2,0.0001738,2]
[401139179,1767966642907,-380.0,0.00017413,2]
[401139182,1767966642917,-334.5472959,0.00017424,2]
[401139184,1767966642926,-496.47127164,0.00017424,2]
[401139186,1767966642935,-2398.4119403,0.00017424,2]
[401139189,1767966642944,-151.0,0.00017424,2]
[401139191,1767966642954,-31110.0,0.00017424,2]
[401139193,1767966642963,-380.0,0.0001744,2]
[401139195,1767966642971,-380.0,0.0001748,2]
[401139197,1767966642980,-3441.0,0.00017485,2]
[401139199,1767966642990,-395.0,0.0001749,2]
[401139201,1767966642999,-151.0,0.000175,2]
[401139202,1767966643009,-380.0,0.00017513,2]
[401139204,1767966643018,-4000.0,0.00017534,2]
[401139207,1767966643027,-3755.89895502,0.00017534,2]
[401139210,1767966643037,-151.0,0.000176,2]
[401139214,1767966643046,-151.0,0.000176,2]
[401139216,1767966643055,-360.3142094,0.00017612,2]
[401139218,1767966643065,-380.0,0.00017616,2]
[401139219,1767966643074,-380.0,0.00017626,2]
[401139220,1767966643083,-9942.97674756,0.0001764,2]
[401139222,1767966643097,-800.0,0.0001765,2]
[401139224,1767966643105,-800.0,0.00017681,2]
[401139226,1767966643115,-800.0,0.00017703,2]
[401139228,1767966643124,-219.25708968,0.00017708,2]
[401139230,1767966643134,-877.02835873,0.00017708,2]
[401139232,1767966643144,-1973.31380715,0.00017708,2]
[401139234,1767966643153,-3508.11343493,0.00017708,2]
[401139236,1767966643163,-5481.42724208,0.00017708,2]
[401139238,1767966643171,-800.0,0.00017724,2]
[401139240,1767966643181,-1100.0,0.00017726,7]
[401139242,1767966643190,-800.0,0.00017729,2]
[401139244,1767966643199,-800.0,0.00017742,2]
[401139246,1767966643208,-800.0,0.00017744,2]
[401139248,1767966643217,-800.0,0.00017746,2]
[401139250,1767966643227,-800.0,0.00017748,2]
[401139252,1767966643237,-800.0,0.00017777,2]
[401139254,1767966643247,-60000.0,0.0001778,2]
[401139256,1767966643256,-800.0,0.00017781,2]
[401139258,1767966643267,-800.0,0.0001779,2]
[401139260,1767966643277,-151.0,0.000178,2]
[401139262,1767966643286,-380.0,0.00017805,2]
[401139264,1767966643295,-146585.83490912,0.00017805,2]
[401139313,1767966643755,-257.14153176,0.00017321,2]
[401139316,1767966643767,-268.85846824,0.00017321,2]
[401139318,1767966643777,-339.0,0.00017321,2]
[401139320,1767966643786,-281.95876316,0.00017321,2]
[401139322,1767966643798,-799.04123684,0.00017321,2]
[401139324,1767966643808,-100.95876316,0.00017805,2]
[401139327,1767966643824,-1131.63761844,0.00017805,2]
[401139443,1767966645222,-272.83182917,0.00017424,2]
[401139484,1767966646785,-209.16817083,0.00017424,2]
[401139485,1767966646794,-1202.78540106,0.00017805,2]
[401139486,1767966646806,-1437.1938843,0.00017805,2]
[401139514,1767967483500,-166.02,0.00010333,2]
[401139515,1767967483698,-193.7,0.00010979,2]
[401139516,1767967483721,-221.37,0.00011625,2]
[401139517,1767967499453,168.65,0.00011212,2]
[401139518,1767967499864,192.75,0.00011872,2]
[401139519,1767967509298,-216.84,0.00012531,2]
[401139520,1767967512921,240.27868152,0.00012782,2]
[401139522,1767967700131,172.47,8.736e-05,2]
[401139523,1767967769140,157.1,8.709e-05,2]
[401139524,1767967769533,179.55,9.032e-05,2]
[401139530,1767967831577,-201.99,9.355e-05,2]
[401139531,1767967831587,-224.43,9.677e-05,2]
[401139532,1767967831596,-416.6623117,0.00013032,2]
[401139533,1767967831606,-300.0,0.00013272,2]
[401139534,1767967831615,-433.15412082,0.00013273,2]
[401139535,1767967831627,-66.84587918,0.00013273,2]
[401139536,1767967831636,-500.0,0.00013273,2]
[401139537,1767967831645,-500.0,0.00013273,2]
[401139538,1767967831655,-501.65991965,0.00013273,2]
[401139539,1767967831665,-500.0,0.00013273,2]
[401139540,1767967831674,-500.0,0.00013273,2]
[401139541,1767967831684,-500.0,0.00013273,2]
[401139542,1767967831693,-500.0,0.00013273,2]
[401139543,1767967831703,-373.49455711,0.00013273,2]
[401139544,1767967831712,-500.0,0.00013273,2]
[401139545,1767967831721,-500.0,0.00013273,2]
[401139546,1767967831730,-500.0,0.00013273,2]
[401139547,1767967831740,-500.0,0.00013273,2]
[401139548,1767967831749,-500.0,0.00013273,2]
[401139549,1767967831758,-500.8915397,0.00013273,2]
[401139550,1767967831767,-500.0,0.00013273,2]
[401139551,1767967831776,-500.0,0.00013273,2]
[401139552,1767967831786,-500.0,0.00013273,2]
[401139553,1767967831795,-500.0,0.00013273,2]
[401139554,1767967831804,-500.0,0.00013273,2]
[401139555,1767967831816,-500.0,0.00013273,2]
[401139556,1767967831826,-500.0,0.00013273,2]
[401139557,1767967831835,-300.0,0.00013673,2]
[401139558,1767967831847,-1000.0,0.00013699,2]
[401139559,1767967831857,-500.0,0.00013699,2]
[401139560,1767967831866,-500.0,0.00013699,2]
[401139561,1767967831876,-500.46507067,0.00013699,2]
[401139562,1767967831886,-500.70142733,0.00013699,2]
[401139563,1767967831895,-500.0,0.00013699,2]
[401139564,1767967831904,-500.0,0.00013699,2]
[401139565,1767967831914,-500.0,0.00013699,2]
[401139566,1767967831923,-500.0,0.00013699,2]
[401139567,1767967831933,-500.0,0.00013699,2]
[401139568,1767967831943,-500.0,0.00013699,2]
[401139569,1767967831952,-581.34216933,0.00013699,2]
[401139570,1767967831961,-240.12686699,0.00013699,2]
[401139571,1767967831973,-259.87313301,0.00013699,2]
[401139572,1767967831981,-257.11994064,0.00013699,2]
[401139573,1767967831993,-242.88005936,0.00013699,2]
[401139574,1767967832003,-389.69129343,0.00013699,2]
[401139575,1767967832013,-45.51211673,0.00013699,2]
[401139579,1767967837652,-454.48788327,0.00013699,2]
[401139580,1767967837662,-500.0,0.00013699,2]
[401139581,1767967837671,-500.0,0.00013699,2]
[401139582,1767967837680,-617.2230827,0.00013699,2]
[401139583,1767967837689,-500.0,0.00013699,2]
[401139584,1767967837699,-500.0,0.00013699,2]
[401139585,1767967837708,-105.29076521,0.00013699,2]
[401139586,1767967837720,-541.39252082,0.00013699,2]
[401139587,1767967837730,-504.73054898,0.00013699,2]
[401139588,1767967837739,-500.0,0.00013699,2]
[401139589,1767967837748,-500.0,0.00013699,2]
[401139590,1767967837758,-500.0,0.00013699,2]
[401139591,1767967837767,-500.0,0.00013699,2]
[401139592,1767967837776,-500.0,0.00013699,2]
[401139593,1767967837786,-500.0,0.00013699,2]
[401139594,1767967837794,-500.0,0.00013699,2]
[401139595,1767967837803,-500.0,0.00013699,2]
[401139597,1767967837814,-313.11255868,0.00013699,2]
[401139599,1767967837823,-159.5886122,0.00013699,2]
[401139601,1767967837833,-500.0,0.00013699,2]
[401139602,1767967837842,-500.0,0.00013699,2]
[401139603,1767967837851,-500.0,0.00013699,2]
[401139604,1767967837860,-76.91354379,0.00013699,2]
[401139605,1767967837872,-423.08645621,0.00013699,2]
[401139606,1767967837881,-500.0,0.00013699,2]
[401139607,1767967837891,-500.0,0.00013699,2]
[401139608,1767967837900,-500.0,0.00013718,2]
[401139609,1767967837909,-161.78438027,0.00013718,2]
[401139610,1767967837920,-338.21561973,0.00013718,2]
[401139611,1767967837930,-500.0,0.00013718,2]
[401139612,1767967837939,-500.0,0.00013718,2]
[401139613,1767967837949,-500.0,0.00013718,2]
[401139614,1767967837959,-500.0,0.00013718,2]
[401139615,1767967837968,-385.05374254,0.00013718,2]
[401139616,1767967837977,-106.65854376,0.00013718,2]
[401139617,1767967837989,-120.50533831,0.00013718,2]
[401139618,1767967837998,-500.0,0.00013718,2]
[401139619,1767967838007,-500.0,0.00013718,2]
[401139620,1767967838017,-500.0,0.00013718,2]
[401139621,1767967838026,-500.0,0.00013718,2]
[401139622,1767967838035,-500.0,0.00013718,2]
[401139623,1767967838045,-500.0,0.00013718,2]
[401139624,1767967838054,-500.0,0.00013718,2]
[401139625,1767967838064,-500.0,0.00013718,2]
[401139626,1767967838074,-500.0,0.00013718,2]
[401139627,1767967838083,-506.75618592,0.00013718,2]
[401139628,1767967838092,-500.0,0.00013718,2]
[401139629,1767967838101,-500.0,0.00013718,2]
[401139630,1767967838110,-500.0,0.00013718,2]
[401139631,1767967838120,-500.0,0.00013718,2]
[401139632,1767967838129,-500.0,0.00013718,2]
[401139633,1767967838138,-500.0,0.00013718,2]
[401139634,1767967838148,-500.0,0.00013718,2]
[401139635,1767967838157,-500.0,0.00013718,2]
[401139636,1767967838166,-500.0,0.00013718,2]
[401139637,1767967838175,-500.0,0.00013718,2]
[401139638,1767967838184,-632.89562878,0.00013718,2]
[401139639,1767967838195,-500.0,0.00013718,2]
[401139640,1767967838204,-500.0,0.00013718,2]
[401139641,1767967838217,-606.33867413,0.00013718,2]
[401139642,1767967838226,-500.0,0.00013718,2]
[401139643,1767967838235,-500.0,0.00013718,2]
[401139644,1767967838244,-500.0,0.00013821,2]
[401139645,1767967838253,-1000.0,0.00013821,2]
[401139646,1767967838262,-500.0,0.00013821,2]
[401139647,1767967838271,-500.0,0.00013821,2]
[401139648,1767967838279,-500.0,0.00013821,2]
[401139649,1767967838288,-500.0,0.00013821,2]
[401139650,1767967838297,-500.0,0.00013821,2]
[401139651,1767967838306,-1000.0,0.00013821,2]
[401139652,1767967838315,-1000.0,0.00013821,2]
[401139653,1767967838324,-1000.0,0.00013821,2]
[401139654,1767967838333,-1000.0,0.00013821,2]
[401139655,1767967838342,-1000.0,0.00013821,2]
[401139656,1767967838351,-300.0,0.00013972,2]
[401139657,1767967838359,-300.0,0.00013972,2]
[401139658,1767967838369,-300.0,0.00013972,2]
[401139659,1767967838378,-300.0,0.00013972,2]
[401139660,1767967838386,-300.0,0.00013972,2]
[401139661,1767967838396,-300.0,0.00013972,2]
[401139662,1767967838405,-300.0,0.00013972,2]
[401139663,1767967838414,-300.0,0.00013972,2]
[401139664,1767967838424,-300.0,0.00013972,2]
[401139665,1767967838432,-300.0,0.00013972,2]
[401139666,1767967838441,-300.0,0.00013972,2]
[401139667,1767967838450,-300.0,0.00013972,2]
[401139668,1767967838459,-300.0,0.00013972,2]
[401139669,1767967838468,-300.0,0.00013972,2]
[401139670,1767967838478,-300.0,0.00013972,2]
[401139671,1767967838490,-600.0,0.00014221,2]
[401139672,1767967838498,-500.0,0.00014247,2]
[401139673,1767967838507,-1000.0,0.00014247,2]
[401139674,1767967838516,-1000.0,0.00014247,2]
[401139675,1767967838526,-500.0,0.00014247,2]
[401139676,1767967838535,-250.0,0.00014247,2]
[401139677,1767967838544,-1000.0,0.00014247,2]
[401139678,1767967838552,-476.33364724,0.00014247,2]
[401139679,1767967838564,-1000.0,0.00014247,2]
[401139680,1767967838573,-502.94143277,0.00014247,2]
[401139681,1767967838583,-429.39147875,0.00014247,2]
[401139682,1767967838591,-500.0,0.00014247,2]
[401139683,1767967838600,-500.0,0.00014247,2]
[401139685,1767967838609,-500.0,0.00014247,2]
[401139687,1767967838618,-1000.0,0.00014247,2]
[401139689,1767967838627,-1000.0,0.00014247,2]
[401139691,1767967838636,-1001.60995325,0.00014247,2]
[401139693,1767967838645,-1000.0,0.00014247,2]
[401139695,1767967838654,-1000.0,0.00014247,2]
[401139697,1767967838664,-1000.0,0.00014247,2]
[401139699,1767967838673,-500.0,0.00014247,2]
[401139701,1767967838682,-245.07051734,0.00014247,2]
[401139703,1767967838691,-447.49421984,0.00014247,2]
[401139705,1767967838701,-956.95332704,0.00014247,2]
[401139706,1767967838710,-1000.0,0.00014247,2]
[401139708,1767967838719,-1000.0,0.00014247,2]
[401139710,1767967838728,-600.0,0.0001425,2]
[401139712,1767967838738,-1500.0,0.00014368,2]
[401139714,1767967838747,-500.0,0.00014368,2]
[401139715,1767967838757,-500.0,0.00014368,2]
[401139716,1767967838914,-1500.0,0.00014368,2]
[401139717,1767967838924,-500.0,0.00014368,2]
[401139718,1767967838933,-1500.0,0.00014368,2]
[401139719,1767967838943,-259.14783661,0.00014494,2]
[401139720,1767967838952,-500.0,0.00014494,2]
[401139721,1767967838962,-416.6623117,0.00014501,2]
[401139722,1767967838971,-420.0,0.00014551,2]
[401139723,1767967838981,-151.0,0.000146,2]
[401139724,1767967838990,-160.56827625,0.00014631,2]
[401139725,1767967839000,-288.89220541,0.00014631,2]
[401139726,1767967839009,-500.0,0.00014631,2]
[401139727,1767967839019,-500.0,0.00014768,2]
[401139728,1767967839029,-900.0,0.00014768,2]
[401139729,1767967839037,-283.5288442,0.00014782,2]
[401139730,1767967839046,-1000.0,0.00014795,2]
[401139731,1767967839055,-1500.0,0.00014795,2]
[401139732,1767967839066,-1500.0,0.00014795,2]
[401139733,1767967839076,-1000.0,0.00014795,2]
[401139734,1767967839086,-1500.0,0.00014795,2]
[401139735,1767967839095,-1500.0,0.00014795,2]
[401139736,1767967839105,-1500.0,0.00014795,2]
[401139737,1767967839114,-500.0,0.00014905,2]
[401139738,1767967839123,-151.12568822,0.00014905,2]
[401139739,1767967839132,-1000.0,0.00014916,2]
[401139740,1767967839142,-2000.0,0.00014916,2]
[401139741,1767967839151,-2000.0,0.00014916,2]
[401139742,1767967839161,-5000.0,0.00014989,2]
[401139743,1767967839171,-100000.0,0.0001499,2]
[401139744,1767967839181,-151.0,0.0001499,2]
[401139745,1767967839191,-151.0,0.0001499,2]
[401139746,1767967839200,-151.0,0.0001499,2]
[401139747,1767967839210,-151.0,0.0001499,2]
[401139748,1767967839220,-151.0,0.00015,2]
[401139749,1767967839229,-500.0,0.00015042,2]
[401139750,1767967839239,-800.0,0.00015068,2]
[401139751,1767967839249,-206.74458148,0.00015179,2]
[401139752,1767967839258,-250.0,0.00015179,2]
[401139753,1767967839268,-250.0,0.00015179,2]
[401139754,1767967839278,-177.57781539,0.00015179,2]
[401139755,1767967839288,-500.0,0.00015179,2]
[401139756,1767967839297,-151.38401694,0.00015179,2]
[401139757,1767967839307,-300.46462292,0.00015316,2]
[401139758,1767967839316,-600.0,0.00015316,2]
[401139759,1767967839326,-489.76585726,0.00015342,2]
[401139760,1767967839336,-2000.0,0.00015342,2]
[401139761,1767967839345,-2000.0,0.00015342,2]
[401139762,1767967839354,-2000.0,0.00015342,2]
[401139763,1767967839364,-151.0,0.000154,2]
[401139764,1767967839373,-2500.0,0.00015464,2]
[401139766,1767967839383,-2500.0,0.00015464,2]
[401139767,1767967839392,-3645.37187998,0.00015472,2]
[401139768,1767967839402,-300.96266415,0.00015571,2]
[401139769,1767967839411,-500.0,0.00015571,2]
[401139770,1767967839421,-500.0,0.00015571,2]
[401139771,1767967839431,-500.0,0.00015571,2]
[401139772,1767967839440,-500.0,0.00015571,2]
[401139773,1767967839450,-500.0,0.00015571,2]
[401139774,1767967839460,-500.0,0.00015571,2]
[401139775,1767967839469,-500.0,0.00015571,2]
[401139776,1767967839479,-500.0,0.00015571,2]
[401139777,1767967839490,-500.0,0.00015571,2]
[401139778,1767967839503,-500.0,0.00015571,2]
[401139779,1767967839512,-500.0,0.00015571,2]
[401139780,1767967839522,-500.0,0.00015571,2]
[401139781,1767967839531,-500.0,0.00015571,2]
[401139782,1767967839542,-200.0,0.00015571,2]
[401139783,1767967839552,-437958.100973,0.00015572,2]
[401139784,1767967839563,-285.260834,0.00015572,2]
[401139785,1767967839574,-151.0,0.00015572,2]
[401139786,1767967839583,-151.0,0.00015572,2]
[401139787,1767967839592,-156.039267,0.00015572,2]
[401139788,1767967839602,-156.039267,0.00015572,2]
[401139789,1767967839611,-156.039267,0.00015572,2]
[401139790,1767967839619,-156.039267,0.00015572,2]
[401139791,1767967839629,-151.0,0.00015572,2]
[401139792,1767967839638,-151.0,0.00015572,2]
[401139793,1767967839647,-151.0,0.00015572,2]
[401139794,1767967839656,-216.173274,0.00015572,2]
[401139795,1767967839665,-720.0,0.00015675,2]
[401139796,1767967839674,-714.0,0.00015868,2]
[401139797,1767967839684,-196.35,0.00015868,2]
[401139798,1767967839693,-417.0,0.00015868,2]
[401139799,1767967839702,-417.0,0.00015868,2]
[401139800,1767967839711,-2500.0,0.0001589,2]
[401139801,1767967839720,-2500.0,0.0001589,2]
[401139802,1767967839730,-2500.0,0.0001589,2]
[401139803,1767967839740,-151.0,0.000159,2]
[401139804,1767967839749,-587.0,0.00015953,2]
[401139805,1767967839758,-416.6623117,0.0001597,2]
[401139806,1767967839767,-3000.0,0.00016012,2]
[401139807,1767967839777,-1232.45700431,0.00016012,2]
[401139808,1767967839785,-1000.0,0.000161,2]
[401139809,1767967839795,-2146.0,0.00016192,2]
[401139810,1767967839804,-1366.0,0.00016192,2]
[401139811,1767967839812,-628.0,0.00016192,2]
[401139812,1767967839822,-151.0,0.000163,2]
[401139813,1767967839831,-1100.0,0.00016356,2]
[401139814,1767967839841,-151.0,0.00016438,2]
[401139815,1767967839850,-151.0,0.00016438,2]
[401139816,1767967839859,-151.0,0.00016438,2]
[401139817,1767967839869,-875.2129012,0.00016438,2]
[401139818,1767967839879,-164.14409414,0.00016438,2]
[401139819,1767967839888,-3000.0,0.00016438,2]
[401139820,1767967839897,-918.97723055,0.00016438,2]
[401139821,1767967839906,-3000.0,0.00016438,2]
[401139822,1767967839916,-200.0,0.00016473,2]
[401139823,1767967839925,-260.31516356,0.0001656,2]
[401139824,1767967839935,-151.0,0.000167,2]
[401139825,1767967839944,-151.0,0.000167,2]
[401139826,1767967839953,-326.77900687,0.00016782,2]
[401139827,1767967839963,-200.0,0.00016807,2]
[401139828,1767967839972,-151.0,0.00016808,2]
[401139829,1767967839981,-151.0,0.00016808,2]
[401139830,1767967839990,-156.039267,0.00016808,2]
[401139831,1767967839999,-156.039267,0.00016808,2]
[401139832,1767967840009,-156.039267,0.00016808,2]
[401139833,1767967840018,-156.039267,0.00016808,2]
[401139834,1767967840027,-156.039267,0.00016808,2]
[401139835,1767967840036,-156.039267,0.00016808,2]
[401139836,1767967840045,-156.039267,0.00016808,2]
[401139837,1767967840054,-156.039267,0.00016808,2]
[401139839,1767967840063,-151.0,0.00016808,2]
[401139840,1767967840073,-151.0,0.00016808,2]
[401139842,1767967840082,-151.0,0.00016808,2]
[401139843,1767967840091,-151.0,0.00016808,2]
[401139844,1767967840100,-151.0,0.00016808,2]
[401139845,1767967840109,-151.0,0.00016808,2]
[401139846,1767967840119,-250.0,0.00016808,2]
[401139847,1767967840128,-250.0,0.00016808,2]
[401139848,1767967840137,-250.0,0.00016808,2]
[401139849,1767967840146,-250.0,0.00016808,2]
[401139850,1767967840155,-250.0,0.00016808,2]
[401139851,1767967840164,-250.0,0.00016808,2]
[401139852,1767967840173,-250.0,0.00016808,2]
[401139853,1767967840182,-250.0,0.00016808,2]
[401139854,1767967840191,-2030.296672,0.00016808,2]
[401139855,1767967840201,-151.0,0.00016808,2]
[401139856,1767967840210,-1500.0,0.00016808,2]
[401139857,1767967840219,-1500.0,0.00016808,2]
[401139858,1767967840229,-151.0,0.00016808,2]
[401139859,1767967840238,-2312.83697232,0.00016808,2]
[401139860,1767967840247,-187.78006526,0.00016808,2]
[401139861,1767967840256,-1500.0,0.00016808,2]
[401139862,1767967840265,-322.6107,0.00016808,2]
[401139863,1767967840275,-151.0,0.00016808,2]
[401139864,1767967840284,-1500.0,0.00016808,2]
[401139865,1767967840293,-151.0,0.00016808,2]
[401139866,1767967840304,-1500.0,0.00016808,2]
[401139867,1767967840313,-151.0,0.00016808,2]
[401139868,1767967840324,-1500.0,0.00016808,2]
[401139869,1767967840333,-151.0,0.00016808,2]
[401139870,1767967840343,-1500.0,0.00016808,2]
[401139871,1767967840352,-250.0,0.00016808,2]
[401139872,1767967840361,-151.0,0.00016808,2]
[401139873,1767967840370,-1500.0,0.00016808,2]
[401139874,1767967840379,-151.0,0.00016808,2]
[401139875,1767967840388,-250.0,0.00016808,2]
[401139876,1767967840398,-1500.0,0.00016808,2]
[401139877,1767967840407,-151.0,0.00016808,2]
[401139878,1767967840415,-250.0,0.00016808,2]
[401139879,1767967840424,-250.0,0.00016808,2]
[401139880,1767967840433,-1500.0,0.00016808,2]
[401139881,1767967840442,-151.0,0.00016808,2]
[401139882,1767967840451,-250.0,0.00016808,2]
[401139883,1767967840460,-250.0,0.00016808,2]
[401139884,1767967840469,-1500.0,0.00016808,2]
[401139885,1767967840478,-250.0,0.00016808,2]
[401139886,1767967840489,-151.0,0.00016808,2]
[401139887,1767967840498,-250.0,0.00016808,2]
[401139888,1767967840507,-500.0,0.00016808,2]
[401139889,1767967840517,-250.0,0.00016808,2]
[401139890,1767967840526,-151.0,0.00016808,2]
[401139891,1767967840536,-1500.0,0.00016808,2]
[401139892,1767967840546,-265.04542702,0.00016808,2]
[401139893,1767967840555,-500.0,0.00016808,2]
[401139894,1767967840564,-151.0,0.00016808,2]
[401139895,1767967840575,-250.0,0.00016808,2]
[401139897,1767967840585,-250.0,0.00016808,2]
[401139899,1767967840593,-1500.0,0.00016808,2]
[401139901,1767967840602,-500.0,0.00016808,2]
[401139903,1767967840611,-151.0,0.00016808,2]
[401139905,1767967840620,-250.0,0.00016808,2]
[401139907,1767967840629,-250.0,0.00016808,2]
[401139909,1767967840638,-1500.0,0.00016808,2]
[401139911,1767967840648,-500.0,0.00016808,2]
[401139913,1767967840657,-151.0,0.00016808,2]
[401139915,1767967840666,-250.0,0.00016808,2]
[401139917,1767967840675,-201.61280064,0.00016808,2]
[401139919,1767967840684,-250.0,0.00016808,2]
[401139921,1767967840693,-500.0,0.00016808,2]
[401139923,1767967840702,-151.0,0.00016808,2]
[401139925,1767967840712,-250.0,0.00016808,2]
[401139927,1767967840721,-250.0,0.00016808,2]
[401139929,1767967840730,-500.0,0.00016808,2]
[401139931,1767967840739,-151.0,0.00016808,2]
[401139933,1767967840748,-250.0,0.00016808,2]
[401139935,1767967840757,-250.0,0.00016808,2]
[401139937,1767967840766,-500.0,0.00016808,2]
[401139939,1767967840775,-250.0,0.00016808,2]
[401139941,1767967840784,-250.0,0.00016808,2]
[401139943,1767967840796,-151.0,0.00016808,2]
[401139945,1767967840805,-500.0,0.00016808,2]
[401139947,1767967840814,-30000.0,0.00016808,2]
[401139949,1767967840824,-234.49400681,0.00016808,2]
[401139951,1767967840833,-151.0,0.00016808,2]
[401139953,1767967840843,-500.0,0.00016808,2]
[401139955,1767967840852,-151.0,0.00016808,2]
[401139957,1767967840862,-500.0,0.00016808,2]
[401139959,1767967840871,-500.0,0.00016808,2]
[401139961,1767967840880,-500.0,0.00016808,2]
[401139963,1767967840888,-500.0,0.00016808,2]
[401139965,1767967840898,-500.0,0.00016808,2]
[401139967,1767967840907,-151.0,0.00016808,2]
[401139969,1767967840915,-151.0,0.00016808,2]
[401139971,1767967840924,-151.0,0.00016808,2]
[401139973,1767967840933,-478.75725327,0.00016808,2]
[401139975,1767967840943,-151.0,0.00016808,2]
[401139977,1767967840952,-151.0,0.00016808,2]
[401139979,1767967840961,-151.0,0.00016808,2]
[401139981,1767967840970,-151.0,0.00016808,2]
[401139983,1767967840979,-151.0,0.00016808,2]
[401139985,1767967840988,-151.0,0.00016808,2]
[401139987,1767967840997,-241.40612291,0.00016808,2]
[401139988,1767967841007,-151.0,0.00016808,2]
[401139989,1767967841016,-151.0,0.00016808,2]
[401139990,1767967841026,-151.0,0.00016808,2]
[401139991,1767967841035,-151.0,0.00016808,2]
[401139992,1767967841044,-151.0,0.00016808,2]
[401139993,1767967841054,-1500.0,0.00016808,2]